Cogmind - Beta 12 @@@ ROGUE MODE // 2023.04.12 @ 05:15:32 Player: Hekatonkheires Result: Escaped! Performance ------------- Evolutions (9) 4500 Regions Visited (27) 5400 Robots Destroyed (326) 1630 Value Destroyed (12731) 12731 Prototype IDs (68) 1360 Alien Tech Used (2) 400 Bonus (10745) 10745 TOTAL SCORE: 36766 Bonus ------- High Alert Combat Kills 312 Follower Combat Kills 1696 Network Hubs Disabled 200 Aligned with FarCom 300 Met Zhirov 300 Met Warlord at Base 500 MAIN.C Attacked Warlord 500 Warlord Defense Kills 1418 A7 Reached Mainframe 300 Met R17 at Cetus 500 Met Warlord at Research 2000 Win 3000 Friendly Fire -281 Cogmind --------- Core Integrity 1552/1600 Matter 46/300 Energy 170/190 System Corruption 4% Temperature Warm (147) Movement Hovering (42) Location To Epsilon Eridani Parts ------- > --- POWER (2) -------- Light Quantum Reactor > --- PROPULSION (6) --- Combat Gravmag System Combat Gravmag System Improved Linear Gravjet Improved Linear Gravjet Improved Linear Gravjet Combat Antigrav System > --- UTILITY (13) ----- Advanced Heat Sink High-capacity Storage Unit Machine Analyzer Enhanced Optical Array Improved Signal Interpreter Improved Targeting Computer Improved Target Analyzer Core Analyzer Advanced Transmission Jammer Advanced Hacking Suite Advanced System Shield Experimental System Shield > --- WEAPON (4) ------- (None) > --- INVENTORY (20) --- Particle Reactor Light Particle Reactor Antigrav System Improved Antigrav System Antigrav Array Advanced Heat Sink Matter Compressor (250) Improved Matter Compressor (300) Weight Redist. System Improved Phase Shifter Graphene Brace Enhanced Nova Cannon Firepult Railgun Railgun Railgun Long-range Missile Launcher Heavy Flail Peak State ------------ > --- POWER ------------ Micro Antimatter Reactor Light Quantum Reactor > --- PROPULSION ------- Combat Gravmag System Combat Gravmag System Improved Antigrav System Improved Gyrokinetic Inverter Improved Linear Gravjet Combat Antigrav System > --- UTILITY ---------- Advanced Heat Sink High-capacity Storage Unit Machine Analyzer Enhanced Optical Array Improved Signal Interpreter Improved Targeting Computer Improved Target Analyzer Core Analyzer Advanced Transmission Jammer Hardlight Generator Advanced Hacking Suite Advanced System Shield Experimental System Shield > --- WEAPON ----------- Enhanced Nova Cannon Railgun Railgun Heavy Gauss Cannon > --- INVENTORY -------- Particle Reactor Light Particle Reactor Antigrav System Improved Linear Gravjet Improved Linear Gravjet Antigrav Array Advanced Heat Sink Matter Compressor Improved Matter Compressor Weight Redist. System Improved Phase Shifter Graphene Brace Improved System Guard Firepult Long-range Missile Launcher Heavy Flail [Rating: 158] Favorites ----------- Power Heavy Ion Engine Engine Heavy Ion Engine Power Core Light Nuclear Core Reactor Heavy Antimatter Reactor Propulsion Armored Wheel Treads Light Treads Leg Flexi-carbon Leg Wheel Armored Wheel Hover Unit Combat Gravmag System Flight Unit Cooled Nuclear Pulse Thruster Utility High-capacity Storage Unit Device Advanced Heat Sink Storage High-capacity Storage Unit Processor Improved Targeting Computer Hackware Advanced System Shield Protection Centrium Medium Armor Plating Weapon Gauss Rifle Energy Gun Advanced Beam Rifle Energy Cannon Cooled Particle Cannon Ballistic Gun Gauss Rifle Ballistic Cannon Hypervelocity Mass Driver Launcher Missile Launcher Special Weapon Improved Plasma Cutter Impact Weapon Heavy Flail Special Melee Weapon Datajack Build | -11 -10 -10 -9 -9 -9 -8 -8 -7 -7 -6 -6 -6 -6 -6 -5 -5 -5 -5 -4 -4 -4 -4 -4 -3 -3 -2 -1 ------- Run | Jun Mat Min Mat Min Exi Min Mat Fac Sto Fac Ext Cet Arc Hub Fac Upp Upp Zhi Pro Fac Upp Upp War Pro Res Res Acc Slots Evolved 18 | . . . 2 . . . 2 2 . 2 . . . . 2 . . . . 2 . . . . 2 2 2 Power 1 | . . . . . . . . . . . . . . . . . . . . . . . . . 1 . . Propulsion 4 | . . . . . . . . . . . . . . . . . . . . 2 . . . . 1 1 . Utility 11 | . . . . . . . 2 2 . 2 . . . . 2 . . . . . . . . . . 1 2 Weapon 2 | . . . 2 . . . . . . . . . . . . . . . . . . . . . . . . Parts Attached 253 | 6 5 1 13 . 3 1 28 4 29 12 5 9 4 7 8 1 8 6 7 30 4 6 5 6 11 13 21 Power 15 | 1 1 . 1 . . 1 . . 2 1 . 1 . . . . . 1 . . . 1 . . 2 2 1 Engine 6 | 1 1 . 1 . . 1 . . 1 1 . . . . . . . . . . . . . . . . . Core 1 | . . . . . . . . . 1 . . . . . . . . . . . . . . . . . . Reactor 8 | . . . . . . . . . . . . 1 . . . . . 1 . . . 1 . . 2 2 1 Propulsion 58 | 2 . 1 4 . . . 5 . 1 1 1 . . . . . 2 1 2 14 4 . 2 3 6 4 5 Treads 5 | 2 . . 1 . . . . . . . . . . . . . 1 . 1 . . . . . . . . Leg 12 | . . . . . . . . . . . . . . . . . . . 1 9 . . . 2 . . . Wheel 13 | . . 1 3 . . . 4 . 1 1 1 . . . . . 1 . . . . . . 1 . . . Hover 26 | . . . . . . . 1 . . . . . . . . . . . . 4 4 . 2 . 6 4 5 Flight 2 | . . . . . . . . . . . . . . . . . . 1 . 1 . . . . . . . Utility 81 | 1 2 . 1 . 1 . 8 3 6 6 1 1 3 5 8 1 5 4 4 8 . 2 1 1 1 4 4 Device 36 | . . . . . . . 2 1 1 3 . . . 3 5 . 3 3 3 2 . 2 . 1 1 3 3 Storage 4 | 1 1 . . . 1 . . . . . . . . . . . . 1 . . . . . . . . . Processor 11 | . . . . . . . 3 1 1 . . . . 1 1 1 . . . 2 . . 1 . . . . Hackware 7 | . . . . . . . . . . 2 . . . . 2 . . . . 1 . . . . . 1 1 Protection 23 | . 1 . 1 . . . 3 1 4 1 1 1 3 1 . . 2 . 1 3 . . . . . . . Artifact . | . . . . . . . . . . . . . . . . . . . . . . . . . . . . Weapon 99 | 2 2 . 7 . 2 . 15 1 20 4 3 7 1 2 . . 1 . 1 8 . 3 2 2 2 3 11 Energy Gun 5 | . . . 1 . . . . . 2 . . 1 . . . . . . . . . . . . 1 . . Energy Cannon 10 | . . . . . . . . . 2 1 . . . . . . . . . . . 1 . 1 . 1 4 Ballistic Gun 58 | 2 2 . 6 . 1 . 11 . 10 3 3 6 1 2 . . 1 . 1 4 . 1 1 . . . 3 Ballistic Cannon 4 | . . . . . . . . . 1 . . . . . . . . . . . . . . 1 . . 2 Launcher 8 | . . . . . . . 1 . 3 . . . . . . . . . . 1 . 1 . . . . 2 Special Weapon 1 | . . . . . . . . . . . . . . . . . . . . . . . . . . 1 . Impact Weapon 11 | . . . . . . . 3 1 2 . . . . . . . . . . 3 . . . . 1 1 . Slashing Weapon . | . . . . . . . . . . . . . . . . . . . . . . . . . . . . Piercing Weapon . | . . . . . . . . . . . . . . . . . . . . . . . . . . . . Special Melee Weapon 2 | . . . . . 1 . . . . . . . . . . . . . . . . . 1 . . . . Unidentified Prototypes 22 | . . . 1 . . . 2 . 5 2 . 3 . 2 1 . . 4 . . . . . 1 . . 1 Parts Lost 42 | . 1 . 2 . . . 4 1 7 1 1 . . . 1 . 3 . 3 6 3 1 2 2 . . 4 Power 3 | . 1 . . . . . . . 1 . . . . . . . . . . . . . . . . . 1 Propulsion 15 | . . . 2 . . . . . 1 1 1 . . . . . 1 . 1 2 1 . 2 1 . . 2 Utility 12 | . . . . . . . 2 1 2 . . . . . 1 . 1 . 1 2 1 . . . . . 1 Weapon 12 | . . . . . . . 2 . 3 . . . . . . . 1 . 1 2 1 1 . 1 . . . Highest Loss Streak 2 | . 1 . 2 . . . 2 1 2 1 1 . . . 1 . 1 . 2 2 1 1 2 2 . . 2 To Critical Strikes . | . . . . . . . . . . . . . . . . . . . . . . . . . . . . Average Slot Usage (%) 95 | . 99 100 99 100 100 100 98 99 96 99 94 93 93 92 93 94 96 99 99 93 90 91 92 91 80 92 92 Engine 4 | . 13 14 11 11 11 11 9 7 4 6 6 . . . . . . . . . . . . . . . . Reactor 2 | . . . . . . . . . . . . 5 6 6 5 5 5 5 5 5 1 4 5 5 8 8 7 Treads 2 | . 28 19 1 . . . . . . . . . . . . . 2 3 1 . . . . . . . . Leg 1 | . . . . . . . . . . . . . . . . . . . 1 16 7 . . 6 . . . Wheel 8 | . . 9 20 22 22 22 17 15 15 12 7 6 6 6 5 5 4 5 3 . . . . 4 . . . Hover 4 | . . . . . . . . . . . . . . . . . . . . . 13 21 20 3 23 26 23 Device 8 | . . . . . . . 5 7 6 12 13 6 6 5 14 17 17 16 17 13 4 8 6 5 4 8 11 Storage 7 | . 17 14 11 11 11 11 9 7 7 6 6 6 6 6 5 5 5 5 5 5 5 5 5 5 4 4 4 Processor 13 | . . . . . . . 11 15 16 13 13 13 13 7 11 11 17 17 17 18 26 26 29 31 28 26 24 Hackware 5 | . . . . . . . . . . 4 13 13 13 13 11 11 8 5 5 5 10 10 10 10 9 8 12 Protection 8 | . 10 14 11 11 11 11 9 14 13 14 6 12 13 19 13 11 7 11 10 4 4 . . . . . . Energy Cannon 2 | . . . . . . . . . 5 13 13 2 . . . . . . . . . 4 5 5 . 2 3 Ballistic Gun 22 | . 28 28 43 44 43 44 34 26 19 10 13 23 26 25 23 23 23 23 23 20 10 10 8 9 . . 1 Naked Turns . | . . . . . . . . . . . . . . . . . . . . . . . . . . . . Heaviest Build 118 | 13 38 36 47 47 67 67 77 72 95 99 96 115 118 118 106 105 105 103 101 118 84 94 91 91 69 90 107 Greatest Support 85 | 40 40 40 40 24 24 24 24 24 24 24 28 28 28 28 28 28 28 12 23 85 85 50 50 50 66 76 84 Greatest Overweight (x) 39 | . . 2 1 1 2 2 23 2 3 7 7 4 4 4 3 3 8 8 8 39 1 1 3 3 1 1 1 Average Overweight (x) 1 | . . 1 1 1 1 2 2 2 2 3 3 3 3 3 3 3 5 8 7 1 . 1 1 2 . . . Largest Inventory Capacity 20 | 8 15 15 15 15 20 20 20 20 20 20 20 20 20 20 20 20 20 20 20 20 20 20 20 20 20 20 20 Average Capacity 19 | 7 14 15 15 15 19 20 20 20 20 20 20 20 20 20 20 20 20 20 20 20 20 20 20 20 20 20 20 Most Carried 20 | 6 15 15 15 15 17 20 20 20 20 20 20 20 20 20 20 20 20 20 20 20 20 20 20 20 20 20 20 Average Carried 18 | 3 13 15 14 14 15 19 19 18 18 19 19 19 20 19 19 20 18 18 19 19 19 17 19 18 19 19 19 Final Capacity 20 | 8 15 15 15 15 20 20 20 20 20 20 20 20 20 20 20 20 20 20 20 20 20 20 20 20 20 20 20 Final Carried 20 | 6 15 15 15 15 17 20 20 20 20 20 19 20 20 19 20 20 17 20 19 20 20 20 18 19 20 19 20 Class Distribution -------------------- 20% | Scavenger-Gunner 13% | Skirmisher 11% | Tank 10% | Mutant 7% | Scavenger-Tank 6% | Hacker-Mutant 6% | Scavenger-Mutant 5% | Hacker-Gunner 4% | Hacker-Skirmisher 4% | Hacker-Assassin Dominant Class ---------------- Mutant | -10/Materials Mutant | -10/Mines Tank | -9/Materials Commander-Mutant | -9/Mines Tank | -9/Exiles Skirmisher | -8/Mines Skirmisher | -8/Materials Tank | -7/Factory Tank | -7/Storage Hacker-Skirmisher | -6/Factory Hacker-Skirmisher | -6/Extension Scavenger-Tank | -6/Cetus Scavenger-Tank | -6/Archives Scavenger-Tank | -6/Hub_04(d) Scavenger-Gunner | -5/Factory Scavenger-Gunner | -5/Upper Caves Scavenger-Gunner | -5/Upper Caves Scavenger-Gunner | -5/Zhirov Scavenger-Gunner | -4/Proximity Caves Scavenger-Gunner | -4/Factory Hacker-Gunner | -4/Upper Caves Hacker-Gunner | -4/Upper Caves Hacker-Mutant | -4/Warlord Hacker-Gunner | -3/Proximity Caves Hacker-Mutant | -3/Research Hacker-Assassin | -2/Research Hacker-Assassin | -1/Access Resources | -11 -10 -10 -9 -9 -9 -8 -8 -7 -7 -6 -6 -6 -6 -6 -5 -5 -5 -5 -4 -4 -4 -4 -4 -3 -3 -2 -1 ----------- Run | Jun Mat Min Mat Min Exi Min Mat Fac Sto Fac Ext Cet Arc Hub Fac Upp Upp Zhi Pro Fac Upp Upp War Pro Res Res Acc Matter Collected 12026 | 242 455 64 835 32 . 338 1727 225 1134 325 509 178 161 623 553 328 455 250 716 1239 323 352 103 81 . 602 176 Remotely 456 | . . . . . . . 456 . . . . . . . . . . . . . . . . . . . . Salvage Created 16052 | . 561 94 1083 49 . 358 2234 320 1163 270 977 273 163 1875 769 186 1118 . 600 1550 140 725 754 281 . 218 291 Parts 764 | . 37 4 69 3 . 20 129 24 68 3 35 13 5 73 48 8 41 . 28 89 9 16 9 10 . 5 18 Haulers Intercepted 21 | . 2 . 3 . . . 4 2 2 . . . . 7 . . . . . 1 . . . . . . . Recyclers Shooed 7 | . . . 1 . . . . . 1 . 3 . . . 1 . . . . 1 . . . . . . . Parts Field Recycled . | . . . . . . . . . . . . . . . . . . . . . . . . . . . . Retrieved Matter . | . . . . . . . . . . . . . . . . . . . . . . . . . . . . Parts Self-Destructed 126 | . . . . . . . . . . . . . . . . 10 45 . 32 . 15 13 . 11 . . . Prevented . | . . . . . . . . . . . . . . . . . . . . . . . . . . . . Kills | -11 -10 -10 -9 -9 -9 -8 -8 -7 -7 -6 -6 -6 -6 -6 -5 -5 -5 -5 -4 -4 -4 -4 -4 -3 -3 -2 -1 ------- Run | Jun Mat Min Mat Min Exi Min Mat Fac Sto Fac Ext Cet Arc Hub Fac Upp Upp Zhi Pro Fac Upp Upp War Pro Res Res Acc Combat Hostiles Destroyed 224 | . 9 2 21 1 . 6 38 2 16 2 11 4 2 7 10 5 18 . 10 19 4 16 11 4 . 1 5 Guns 171 | . 9 2 21 1 . 6 34 2 10 . 3 2 2 7 10 5 18 . 10 19 3 5 1 1 . . . Cannons 23 | . . . . . . . . . 4 2 6 2 . . . . . . . . . 1 . 3 . . 5 AOE 21 | . . . . . . . 4 . 2 . . . . . . . . . . . 1 8 5 . . 1 . Classes Destroyed 20 | . 5 . 2 1 . 1 4 1 . . 1 . . . . . 2 . 2 1 . . . . . . . Worker 18 | . . . . . . . 6 4 . . . . . 5 1 . . . . 1 . . . . . 1 . Builder 16 | . 1 . 1 . . . 2 . 3 . . . . 1 3 . . . . 4 . . . . . 1 . Tunneler 1 | . . . . . . 1 . . . . . . . . . . . . . . . . . . . . . Hauler 21 | . 2 . 3 . . . 4 2 2 . . . . 7 . . . . . 1 . . . . . . . Recycler 11 | . . . . . . . 2 . 1 1 1 . . 4 1 . . . . . . . . . . 1 . Minesweeper 1 | . . . . . . . . . . . . . . . . . . . 1 . . . . . . . . Mechanic 1 | . . . . . . . . . . . . . . . . . . . . 1 . . . . . . . Operator 5 | . 1 . . . . . 3 . . . . . . 1 . . . . . . . . . . . . . Drone 2 | . . . . . . . . . . . . . . . . . . . 2 . . . . . . . . Watcher 27 | . 2 . 5 . . . 5 2 2 . 3 1 . 2 3 . . . . 2 . . . . . . . Swarmer 41 | . . . 7 . . . 12 . . . . . . . 4 4 2 . . 1 2 9 . . . . . Grunt 91 | . 9 2 8 . . 5 18 1 9 . 5 1 . 2 . . 7 . 3 6 . 6 6 3 . . . Brawler 6 | . . . . . . . . . . . . . . . . . 3 . . . . 1 2 . . . . Duelist 7 | . . . . 1 . 1 1 . . . 1 . . . . . 1 . . 1 . . 1 . . . . Protector 3 | . . . . . . . . . . . . . . . . . 1 . . . . . 2 . . . . Sentry 30 | . . . 6 . . . 5 . 4 1 3 . 2 2 1 1 1 . 1 1 1 . . 1 . . . Hunter 9 | . . . . . . . 1 . 1 . . . . 2 1 . 1 . 1 2 . . . . . . . Programmer 29 | . . . . . . . . 1 2 1 . . . 1 4 . 2 . 3 8 1 . . . . 1 5 Heavy 1 | . . . . . . . 1 . . . . . . . . . . . . . . . . . . . . Behemoth 2 | . . . . . . . . . . . 2 . . . . . . . . . . . . . . . . Cetus Guard 3 | . . . . . . . . . . . . 3 . . . . . . . . . . . . . . . Guerrilla 1 | . . . . . . . . . . . . . . 1 . . . . . . . . . . . . . Best Kill Streak 11 | . 2 2 4 1 . 2 5 3 9 1 3 2 2 6 7 4 7 . 3 7 2 5 11 3 . 3 3 Combat Bots Only 11 | . 2 2 4 1 . 2 5 2 4 1 2 1 2 2 4 4 7 . 3 6 2 5 11 3 . 1 3 Max Kills in Single Turn 6 | . 1 1 2 1 . 1 3 1 2 1 1 1 1 3 3 2 3 . 1 2 1 5 6 1 . 1 1 Gunslinging 2 | . . . 1 . . . 1 . . . . . . . 1 . 2 . . 1 . 1 . . . . . Exploded 5 | . . . . . . . 2 . 1 . . . . . . . . . . . 1 5 3 . . 1 . Melee . | . . . . . . . . . . . . . . . . . . . . . . . . . . . . Uniques/NPCs Destroyed . | . . . . . . . . . . . . . . . . . . . . . . . . . . . . Combat | -11 -10 -10 -9 -9 -9 -8 -8 -7 -7 -6 -6 -6 -6 -6 -5 -5 -5 -5 -4 -4 -4 -4 -4 -3 -3 -2 -1 -------- Run | Jun Mat Min Mat Min Exi Min Mat Fac Sto Fac Ext Cet Arc Hub Fac Upp Upp Zhi Pro Fac Upp Upp War Pro Res Res Acc Damage Taken 10927 | . 476 154 394 21 . 211 1148 223 795 243 559 49 171 522 823 109 770 . 672 1198 331 293 349 590 51 . 775 Core 1107 | . 27 69 38 . . 34 104 33 73 70 50 . 13 18 21 . 134 . 79 87 43 19 36 111 . . 48 Absorbed by Shields 113 | . . . . . . . . . . . 37 16 . . . . . . . . . 40 . . . . 20 Redirected to Shielding 153 | . . . . . . . . . . . . . . 112 41 . . . . . . . . . . . . Regen/Repaired (Parts) 315 | . . . 255 . . . . . . . . . . . . . . . . . . . 60 . . . . Core Remaining (%) 84 | 100 . 61 . . . 82 81 . 84 . . . . 82 . . . . 76 . . . . 70 100 100 97 Volleys Fired 644 | . 55 8 48 2 . 18 94 12 57 8 39 7 9 38 41 4 25 . 33 52 10 14 7 9 . 1 53 Largest 4 | . 2 2 4 4 . 4 4 3 4 4 4 4 4 4 4 4 4 . 4 4 4 3 3 4 . 1 4 Hottest 313 | . 46 46 92 92 . 92 112 75 110 205 236 236 133 140 140 140 140 . 133 126 120 306 313 227 . 250 251 Shots Fired 2059 | . 110 16 186 8 . 72 350 34 174 29 143 28 36 124 132 16 94 . 120 207 21 32 18 30 . 1 78 Gun 1814 | . 110 16 186 8 . 72 346 34 129 13 68 22 36 124 132 16 94 . 120 207 12 25 14 13 . . 17 Cannon 218 | . . . . . . . . . 37 16 75 6 . . . . . . . . . 6 4 17 . 1 56 Launcher 27 | . . . . . . . 4 . 8 . . . . . . . . . . . 9 1 . . . . 5 Special . | . . . . . . . . . . . . . . . . . . . . . . . . . . . . Kinetic 1831 | . 110 16 186 8 . 72 346 34 129 13 68 22 36 124 132 16 94 . 120 207 12 25 14 22 . . 25 Thermal 201 | . . . . . . . . . 37 16 75 6 . . . . . . . . . 6 4 8 . 1 48 Explosive 19 | . . . . . . . 4 . . . . . . . . . . . . . 9 1 . . . . 5 Electromagnetic 8 | . . . . . . . . . 8 . . . . . . . . . . . . . . . . . . Robot Hit Streak 33 | . 12 6 16 3 . 5 12 5 14 10 13 5 6 33 11 9 12 . 12 19 28 6 5 11 . . 7 Robot Miss Streak 6 | . 3 3 4 2 . 3 6 2 3 1 3 2 2 3 4 4 2 . 5 3 1 4 2 2 . . 1 Penetration Max 1 | . . . . . . . 1 . 1 . 1 . . 1 1 1 1 . 1 1 . . 1 . . . 1 Secondary Targets 33 | . 2 . 3 1 . 2 7 1 1 . . . 1 . 4 1 5 . 2 2 . 1 . . . . . Max Gunslinging Chain 2 | . 1 . 2 1 . 1 1 1 1 . . . 1 . 1 1 2 . 1 1 . 1 . . . . . Shots Hit Robots 1248 | . 75 12 110 5 1 41 191 23 112 21 85 11 25 78 64 9 73 . 79 142 12 25 10 23 . 4 17 Core Hits 585 | . 27 5 48 1 . 16 95 12 44 6 33 7 7 49 27 5 29 . 27 58 10 31 31 9 . 1 7 Critical Kills 41 | . . . 1 . . . 1 1 . . . 1 1 9 4 2 5 . 2 8 1 1 1 3 . . . Critical Parts Destroyed 67 | . 1 . 1 1 . . 6 1 . . . . 2 10 10 . 9 . 7 12 . 1 . 4 . 2 . Critical Strikes 112 | . 1 . 2 1 . . 7 2 . . . 1 3 19 14 3 15 . 9 20 1 2 1 8 . 2 1 Destroy 107 | . 1 . 2 1 . . 7 . . . . 1 3 19 14 3 15 . 9 20 1 2 1 8 . . . Blast 1 | . . . . . . . . . . . . . . . . . . . . . . . . . . . 1 Smash 4 | . . . . . . . . 2 . . . . . . . . . . . . . . . . . 2 . Melee Attacks 48 | . . . . . 1 . 6 8 3 . . . . . . . . . . 8 . . . . 1 11 10 Impact 47 | . . . . . . . 6 8 3 . . . . . . . . . . 8 . . . . 1 11 10 Slashing . | . . . . . . . . . . . . . . . . . . . . . . . . . . . . Piercing . | . . . . . . . . . . . . . . . . . . . . . . . . . . . . Sneak Attacks 8 | . . . . . 1 . . 4 . . . . . . . . . . . . . . . . . 3 . Combat Hostiles . | . . . . . . . . . . . . . . . . . . . . . . . . . . . . Follow-up Attacks . | . . . . . . . . . . . . . . . . . . . . . . . . . . . . Damage Inflicted 33391 | . 1071 226 1874 74 . 689 4562 726 2587 598 2247 464 747 2656 2366 333 2351 . 1687 3221 456 1601 1021 536 . 391 907 Guns 25558 | . 1039 226 1803 74 . 689 4172 367 1409 161 767 274 747 2547 2366 333 2351 . 1687 3221 216 386 225 210 . . 288 Cannons 3942 | . . . . . . . . . 712 437 1480 190 . . . . . . . . . 145 102 326 . . 550 Explosions 2951 | . . . . . . . 347 . 466 . . . . 109 . . . . . . 240 1070 694 . . 25 . Melee 772 | . . . . . . . . 337 . . . . . . . . . . . . . . . . . 366 69 Ramming 168 | . 32 . 71 . . . 43 22 . . . . . . . . . . . . . . . . . . . Kinetic 25911 | . 1039 226 1803 74 . 689 4172 367 1409 161 767 274 747 2547 2366 333 2351 . 1687 3221 216 386 225 374 . . 477 Thermal 4982 | . . . . . . . . . 712 437 1480 190 . . . . . . . . . 819 796 162 . 25 361 Explosive 1205 | . . . . . . . 347 . 222 . . . . . . . . . . . 240 396 . . . . . Electromagnetic 353 | . . . . . . . . . 244 . . . . 109 . . . . . . . . . . . . . Impact 772 | . . . . . . . . 337 . . . . . . . . . . . . . . . . . 366 69 Slashing . | . . . . . . . . . . . . . . . . . . . . . . . . . . . . Piercing . | . . . . . . . . . . . . . . . . . . . . . . . . . . . . Highest Corruption 4 | . . . . . . 1 . . . 1 1 1 1 1 2 2 2 . 1 1 . . . . . . 4 Average Corruption 1 | . . . . . . 1 . . . 1 1 1 1 1 1 2 1 . 1 1 . . . . . . 2 Corruption Purged 6 | . . . . . . . . . . 1 . . . . . . 3 . 1 1 . . . . . . . Corruption Blocked 18 | . . . . . . . . . . . . . . . 5 . . . . . . . . . . 13 . Effects 67 | . . . . . . 4 . . . 2 3 4 4 8 10 3 2 . 1 15 . . . . . . 11 Message Errors 18 | . . . . . . 1 . . . 1 . 2 1 1 4 2 1 . . 3 . . . . . . 2 Matter Fused 16 | . . . . . . 1 . . . 1 . . 1 4 3 . . . . 3 . . . . . . 3 Heat Flow Errors 8 | . . . . . . . . . . . 1 . . . . . . . . 2 . . . . . . 5 Energy Discharges 10 | . . . . . . . . . . . 1 1 1 . . 1 . . . 5 . . . . . . 1 Parts Fused 1 | . . . . . . . . . . . . . . . . . . . 1 . . . . . . . . Data Loss (minor) 5 | . . . . . . 2 . . . . . . . 1 1 . 1 . . . . . . . . . . Data Loss (major) 5 | . . . . . . . . . . . 1 1 1 1 1 . . . . . . . . . . . . Misfires 3 | . . . . . . . . . . . . . . . 1 . . . . 2 . . . . . . . Alerts 1 | . . . . . . . . . . . . . . 1 . . . . . . . . . . . . . Overload Shots 14 | . . . . . . . . . . 4 6 4 . . . . . . . . . . . . . . . Effects 2 | . . . . . . . . . . 2 . . . . . . . . . . . . . . . . . Energy Bleed 1 | . . . . . . . . . . 1 . . . . . . . . . . . . . . . . . Short Circuit 1 | . . . . . . . . . . 1 . . . . . . . . . . . . . . . . . Overflow Damage 639 | . . . . . . . 49 167 17 35 5 . . . . . . . . . 13 . . . . 296 57 Projectiles 98 | . . . . . . . . . 15 35 5 . . . . . . . . . . . . . . . 43 Explosions 55 | . . . . . . . 40 . 2 . . . . . . . . . . . 13 . . . . . . Melee 486 | . . . . . . . 9 167 . . . . . . . . . . . . . . . . . 296 14 Knockbacks 8 | . . . . . . . 1 . . . . . . . . . . . . . . . . 1 . 3 3 Impact 5 | . . . . . . . 1 . . . . . . . . . . . . . . . . . . 3 1 Kinetic 3 | . . . . . . . . . . . . . . . . . . . . . . . . 1 . . 2 Secondary . | . . . . . . . . . . . . . . . . . . . . . . . . . . . . Self-Inflicted Damage 191 | . . . 33 . . . 20 11 . . . . . 93 . . . . . . . 34 . . . . . Shots 2 | . . . . . . . . . . . . . . 1 . . . . . . . 1 . . . . . Rammed 22 | . 5 . 10 . . 1 5 1 . . . . . . . . . . . . . . . . . . . Targets Rammed 22 | . 5 . 10 . . 1 5 1 . . . . . . . . . . . . . . . . . . . Kicked . | . . . . . . . . . . . . . . . . . . . . . . . . . . . . Crushed . | . . . . . . . . . . . . . . . . . . . . . . . . . . . . Highest Temperature 507 | . 83 102 283 79 . 205 371 207 338 98 90 36 15 450 316 . 16 . 2 245 34 297 507 194 44 180 493 Average Temperature 80 | . 23 59 79 42 . 92 91 79 79 38 38 10 6 96 110 . 6 . 2 49 15 127 207 108 16 10 116 Received Heat Transfer 2543 | . 243 81 129 9 . 108 414 81 246 66 210 9 9 63 18 9 210 . 45 165 84 67 132 111 9 . 25 Effects 19 | . . . . . . . 2 . 3 . . . . 4 . . . . . . . 3 3 . . . 4 Shutdowns 4 | . . . . . . . 1 . . . . . . 1 . . . . . . . . . . . . 2 Energy Bleed 3 | . . . . . . . . . 1 . . . . . . . . . . . . . . . . . 2 Interference 12 | . . . . . . . 1 . 2 . . . . 3 . . . . . . . 3 3 . . . . Siege Activations . | . . . . . . . . . . . . . . . . . . . . . . . . . . . . Robots Corrupted . | . . . . . . . . . . . . . . . . . . . . . . . . . . . . Combat Hostiles . | . . . . . . . . . . . . . . . . . . . . . . . . . . . . Parts Fried 13 | . . . . . . . . 3 1 . 1 1 . . . . . . . . . . 2 . . 5 . Impact Corruptions 14 | . . . . . . . 1 3 . . . . . . . . . . . . . . . . . 9 1 Robots Melted 9 | . . . . . . . . . . . 2 . . . . . . . . . . 2 5 . . . . Combat Hostiles 9 | . . . . . . . . . . . 2 . . . . . . . . . . 2 5 . . . . Parts Melted 41 | . . . . 1 . . . . . . 6 . . . . . . . . . . 17 15 . . . 2 Heat Transferred 12547 | . . . . . . . . . 962 483 1865 187 . . . . . . . . . 3840 4621 250 . 80 259 Parts Sabotaged . | . . . . . . . . . . . . . . . . . . . . . . . . . . . . Parts Stolen . | . . . . . . . . . . . . . . . . . . . . . . . . . . . . Parts Stripped . | . . . . . . . . . . . . . . . . . . . . . . . . . . . . Power Chain Reactions 1 | . . . . . . . . . 1 . . . . . . . . . . . . . . . . . . Missiles Intercepted . | . . . . . . . . . . . . . . . . . . . . . . . . . . . . Alert | -11 -10 -10 -9 -9 -9 -8 -8 -7 -7 -6 -6 -6 -6 -6 -5 -5 -5 -5 -4 -4 -4 -4 -4 -3 -3 -2 -1 ------- Run | Jun Mat Min Mat Min Exi Min Mat Fac Sto Fac Ext Cet Arc Hub Fac Upp Upp Zhi Pro Fac Upp Upp War Pro Res Res Acc Peak Influence 955 | . 138 50 212 141 . 225 741 363 397 152 291 955 410 327 395 . . . . 449 . . . . 797 390 200 Initial 797 | . . . 19 43 . . 40 336 41 121 . 162 335 143 154 . . . . 312 . . . . 797 387 20 Average 194 | . 53 44 92 50 . 139 257 252 157 57 129 741 400 127 266 . . . . 290 . . . . 727 223 50 Maximum Alert Level 3 | . . . 1 . . 1 3 1 1 . 1 3 2 1 1 . . . . 2 . . . . 3 1 1 Low Security (%) 57 | 100 100 100 99 100 . 73 39 28 60 100 59 4 . 75 27 . . . . 4 . . . . . 40 99 Level 1 33 | . . . . . . 26 36 71 39 . 40 1 15 24 72 . . . . 91 . . . . . 59 . Level 2 6 | . . . . . . . 22 . . . . 4 84 . . . . . . 3 . . . . 51 . . Level 3 3 | . . . . . . . 1 . . . . 88 . . . . . . . . . . . . 48 . . Level 4 . | . . . . . . . . . . . . . . . . . . . . . . . . . . . . Level 5 . | . . . . . . . . . . . . . . . . . . . . . . . . . . . . High Security . | . . . . . . . . . . . . . . . . . . . . . . . . . . . . Max Security . | . . . . . . . . . . . . . . . . . . . . . . . . . . . . Squads Dispatched 38 | . 1 . . . . . 6 2 5 1 . . . 1 4 . 1 . . 11 . . . . . 1 5 Investigation 3 | . . . . . . . 2 . . . . . . . . . . . . 1 . . . . . . . Extermination 13 | . . . . . . . . 1 1 1 . . . 1 2 . . . . 4 . . . . . . 3 Reinforcement 16 | . 1 . . . . . 3 1 4 . . . . . 2 . . . . 2 . . . . . 1 2 Assault 2 | . . . . . . . 1 . . . . . . . . . 1 . . . . . . . . . . Garrison 4 | . . . . . . . . . . . . . . . . . . . . 4 . . . . . . . Intercept . | . . . . . . . . . . . . . . . . . . . . . . . . . . . . Searches Triggered . | . . . . . . . . . . . . . . . . . . . . . . . . . . . . Construction Impeded 4 | . . . . . . . 1 . 2 . . . . . 1 . . . . . . . . . . . . Haulers Reinforced 4 | . . . . . . . . 1 2 . . . . . . . . . . . . . . . . 1 . Active Scanning Responses . | . . . . . . . . . . . . . . . . . . . . . . . . . . . . Cargo Convoy Interrupts 1 | . . . . . . . . . . . . . . . 1 . . . . . . . . . . . . Stealth | -11 -10 -10 -9 -9 -9 -8 -8 -7 -7 -6 -6 -6 -6 -6 -5 -5 -5 -5 -4 -4 -4 -4 -4 -3 -3 -2 -1 --------- Run | Jun Mat Min Mat Min Exi Min Mat Fac Sto Fac Ext Cet Arc Hub Fac Upp Upp Zhi Pro Fac Upp Upp War Pro Res Res Acc Distress Signals 29 | . . . 1 . . . 2 . 3 . 2 2 1 1 . . . . . 2 . . . . . 12 3 Communications Jammed 14 | . . . . . . . . . . . . . . . . . . . . . . . . . . . 14 Distress Signals 14 | . . . . . . . . . . . . . . . . . . . . . . . . . . . 14 Times Spotted 365 | . 17 4 32 3 . 13 51 7 22 2 25 20 8 11 14 3 21 . 12 24 11 19 15 11 2 1 17 Peak Tracking Total 12 | . 3 2 6 3 . 4 8 5 6 1 3 6 2 5 4 2 7 . 3 5 7 5 12 4 3 1 4 Tactical Retreats 12 | . 1 . 1 . . . 1 . 1 . . 1 . . . . 1 . 1 . 1 1 1 . . . 2 Traps | -11 -10 -10 -9 -9 -9 -8 -8 -7 -7 -6 -6 -6 -6 -6 -5 -5 -5 -5 -4 -4 -4 -4 -4 -3 -3 -2 -1 ------- Run | Jun Mat Min Mat Min Exi Min Mat Fac Sto Fac Ext Cet Arc Hub Fac Upp Upp Zhi Pro Fac Upp Upp War Pro Res Res Acc Traps Triggered 11 | . 2 . . . . . 2 . 2 1 2 . . . 1 . . . . 1 . . . . . . . Indirectly 2 | . . . . . . . . . 2 . . . . . . . . . . . . . . . . . . Trap Hack Attempts . | . . . . . . . . . . . . . . . . . . . . . . . . . . . . Triggered . | . . . . . . . . . . . . . . . . . . . . . . . . . . . . Disarmed 9 | . 3 . . . . . . . . . 6 . . . . . . . . . . . . . . . . Reprogrammed . | . . . . . . . . . . . . . . . . . . . . . . . . . . . . Reused . | . . . . . . . . . . . . . . . . . . . . . . . . . . . . Traps Extracted . | . . . . . . . . . . . . . . . . . . . . . . . . . . . . Installed . | . . . . . . . . . . . . . . . . . . . . . . . . . . . . Triggered 16 | . . . . . . . . . . . . . . . 1 . . . 2 . . . 13 . . . . Machines | -11 -10 -10 -9 -9 -9 -8 -8 -7 -7 -6 -6 -6 -6 -6 -5 -5 -5 -5 -4 -4 -4 -4 -4 -3 -3 -2 -1 ---------- Run | Jun Mat Min Mat Min Exi Min Mat Fac Sto Fac Ext Cet Arc Hub Fac Upp Upp Zhi Pro Fac Upp Upp War Pro Res Res Acc Machines Disabled 41 | . . . 1 . . . 4 . 4 . 2 1 3 14 5 . 2 . . 3 . 1 . . . . 1 Max in Single Turn 13 | . . . 1 . . . 1 . 1 . 1 . 1 13 1 . 1 . . 1 . 1 . . . . 1 Garrison Access 5 | . . . . . . . 1 . . . . . . 1 1 . . . . 1 . . . . . . 1 Network Hub 1 | . . . . . . . . . . . . . . 1 . . . . . . . . . . . . . Machines Repaired . | . . . . . . . . . . . . . . . . . . . . . . . . . . . . Machines Sabotaged . | . . . . . . . . . . . . . . . . . . . . . . . . . . . . Overloaded Fab Kills . | . . . . . . . . . . . . . . . . . . . . . . . . . . . . Hacking | -11 -10 -10 -9 -9 -9 -8 -8 -7 -7 -6 -6 -6 -6 -6 -5 -5 -5 -5 -4 -4 -4 -4 -4 -3 -3 -2 -1 --------- Run | Jun Mat Min Mat Min Exi Min Mat Fac Sto Fac Ext Cet Arc Hub Fac Upp Upp Zhi Pro Fac Upp Upp War Pro Res Res Acc Machines Accessed 110 | . 7 . 11 1 2 . 8 2 8 5 13 3 1 10 7 . . 9 . 5 . . 5 . 3 2 8 Terminals 79 | . 7 . 9 1 . . 7 2 8 3 13 3 . 9 4 . . . . 2 . . . . 3 1 7 Fabricators 6 | . . . . . . . . . . 2 . . . . 2 . . . . 2 . . . . . . . Repair Stations 1 | . . . 1 . . . . . . . . . . . . . . . . . . . . . . . . Recycling Units 1 | . . . 1 . . . . . . . . . . . . . . . . . . . . . . . . Scanalyzers . | . . . . . . . . . . . . . . . . . . . . . . . . . . . . Garrison Access 6 | . . . . . . . 1 . . . . . . 1 1 . . . . 1 . . . . . 1 1 Total Hacks 354 | . 28 . 30 2 5 . 18 3 18 12 26 10 25 29 20 . . 48 . 16 . . 11 . 13 4 36 Successful 218 | . 13 . 24 1 5 . 9 . 8 5 15 5 25 15 9 . . 48 . 8 . . 11 . 6 . 11 Failed 134 | . 14 . 5 1 . . 9 3 10 7 11 5 . 14 11 . . . . 8 . . . . 7 4 25 Catastrophic 20 | . 1 . 1 . . . 2 1 1 2 2 . . 1 1 . . . . 2 . . . . 1 1 4 Database Lockouts 2 | . 1 . 1 . . . . . . . . . . . . . . . . . . . . . . . . Manual 119 | . 11 . 19 2 1 . 12 2 6 11 7 1 . 9 12 . . . . 11 . . . . 6 3 6 Terminals 235 | . 28 . 22 2 . . 17 3 18 9 26 10 . 28 15 . . . . 9 . . . . 13 3 32 Fabricators 13 | . . . . . . . . . . 3 . . . . 4 . . . . 6 . . . . . . . Repair Stations 6 | . . . 6 . . . . . . . . . . . . . . . . . . . . . . . . Recycling Units 2 | . . . 2 . . . . . . . . . . . . . . . . . . . . . . . . Scanalyzers . | . . . . . . . . . . . . . . . . . . . . . . . . . . . . Garrison Access 9 | . . . . . . . 1 . . . . . . 1 1 . . . . 1 . . . . . 1 4 Terminal Hacks 169 | . 11 . 9 1 5 . 4 . 5 3 14 5 25 10 4 . . 48 . 1 . . 11 . 4 . 9 Record 79 | . 1 . 1 . 4 . . . . . 1 4 25 2 . . . 36 . . . . 4 . . . 1 Part Schematic 4 | . . . . . . . . . . . . . . . . . . 4 . . . . . . . . . Robot Analysis 16 | . 4 . 3 . . . . . 1 . 2 . . 1 1 . . 4 . . . . . . . . . Prototype ID Bank 11 | . 2 . . . . . . . . . . . . . . . . 4 . . . . 5 . . . . Open Door 20 | . . . . . . . . . 2 1 10 1 . . . . . . . . . . 2 . . . 4 Level Access Points 2 | . . . . . . . . . . . . . . . . . . . . . . . . . 1 . 1 Branch Access Points 7 | . . . 1 1 . . 1 . . 1 . . . 1 1 . . . . 1 . . . . . . . Emergency Access Points 1 | . 1 . . . . . . . . . . . . . . . . . . . . . . . . . . Machine Index 1 | . . . . . . . . . . . . . . . . . . . . . . . . . . . 1 Alert Level 12 | . . . 2 . . . 2 . 1 1 . . . 2 1 . . . . . . . . . 2 . 1 Unreport Threat 7 | . . . 1 . . . 1 . 1 . . . . 1 1 . . . . . . . . . 1 . 1 Locate Traps 3 | . 1 . 1 . . . . . . . . . . 1 . . . . . . . . . . . . . Disarm Traps 2 | . 1 . . . . . . . . . 1 . . . . . . . . . . . . . . . . Zone Layout 3 | . 1 . . . . . . . . . . . . 2 . . . . . . . . . . . . . EX-Prototype ID Bank 1 | . . . . . 1 . . . . . . . . . . . . . . . . . . . . . . Fabricator Hacks 2 | . . . . . . . . . . . . . . . . . . . . 2 . . . . . . . Load Schematic 1 | . . . . . . . . . . . . . . . . . . . . 1 . . . . . . . Build 1 | . . . . . . . . . . . . . . . . . . . . 1 . . . . . . . Repair Station Hacks 6 | . . . 6 . . . . . . . . . . . . . . . . . . . . . . . . Scan Component 3 | . . . 3 . . . . . . . . . . . . . . . . . . . . . . . . Repair 3 | . . . 3 . . . . . . . . . . . . . . . . . . . . . . . . Recycling Unit Hacks 2 | . . . 2 . . . . . . . . . . . . . . . . . . . . . . . . Report Inventory 1 | . . . 1 . . . . . . . . . . . . . . . . . . . . . . . . Retrieve Matter 1 | . . . 1 . . . . . . . . . . . . . . . . . . . . . . . . Scanalyzer . | . . . . . . . . . . . . . . . . . . . . . . . . . . . . Garrison Access Hacks 5 | . . . . . . . 1 . . . . . . 1 1 . . . . 1 . . . . . . 1 Seal Access 5 | . . . . . . . 1 . . . . . . 1 1 . . . . 1 . . . . . . 1 Unauthorized Hacks 34 | . 2 . 7 . . . 4 . 3 2 1 . . 4 4 . . . . 4 . . . . 2 . 1 Terminals 30 | . 2 . 7 . . . 4 . 3 2 1 . . 4 2 . . . . 2 . . . . 2 . 1 Assimilate 6 | . . . 3 . . . . . . . . . . 2 . . . . . 1 . . . . . . . Botnet 21 | . 2 . 3 . . . 3 . 3 1 1 . . 2 2 . . . . 1 . . . . 2 . 1 Operators 3 | . . . 1 . . . 1 . . 1 . . . . . . . . . . . . . . . . . Fabricators 4 | . . . . . . . . . . . . . . . 2 . . . . 2 . . . . . . . Fabnet 4 | . . . . . . . . . . . . . . . 2 . . . . 2 . . . . . . . Repair Stations . | . . . . . . . . . . . . . . . . . . . . . . . . . . . . Recycling Units . | . . . . . . . . . . . . . . . . . . . . . . . . . . . . Scanalyzers . | . . . . . . . . . . . . . . . . . . . . . . . . . . . . Garrison Access . | . . . . . . . . . . . . . . . . . . . . . . . . . . . . Data Cores Recovered 4 | . . . . . . . 2 . . . 1 . . 1 . . . . . . . . . . . . . Used 1 | . . . . . . . . . . . 1 . . . . . . . . . . . . . . . . Hacking Detections 69 | . 7 . 11 1 . . 7 2 8 4 3 1 . 9 4 . . . . 3 . . . . 3 2 4 Full Trace Events 1 | . . . . . . . . . . . . . . . . . . . . 1 . . . . . . . Feedback Events . | . . . . . . . . . . . . . . . . . . . . . . . . . . . . Feedback Blocked . | . . . . . . . . . . . . . . . . . . . . . . . . . . . . Robot Schematics Acquired . | . . . . . . . . . . . . . . . . . . . . . . . . . . . . Robots Built . | . . . . . . . . . . . . . . . . . . . . . . . . . . . . Authchips . | . . . . . . . . . . . . . . . . . . . . . . . . . . . . Time . | . . . . . . . . . . . . . . . . . . . . . . . . . . . . Total Robot Build Rating . | . . . . . . . . . . . . . . . . . . . . . . . . . . . . Part Schematics Acquired 4 | . . . . . . . . . . . . . . . . . . 4 . . . . . . . . . Parts Built . | . . . . . . . . . . . . . . . . . . . . . . . . . . . . Authchips . | . . . . . . . . . . . . . . . . . . . . . . . . . . . . Time 169 | . . . . . . . . . . . . . . . . . . . . 169 . . . . . . . Total Part Build Rating . | . . . . . . . . . . . . . . . . . . . . . . . . . . . . Parts Repaired 3 | . . . 3 . . . . . . . . . . . . . . . . . . . . . . . . Time 96 | . . . 96 . . . . . . . . . . . . . . . . . . . . . . . . Parts Recycled . | . . . . . . . . . . . . . . . . . . . . . . . . . . . . Recycled Matter . | . . . . . . . . . . . . . . . . . . . . . . . . . . . . Retrieved Matter 107 | . . . 107 . . . . . . . . . . . . . . . . . . . . . . . . Retrieved Components . | . . . . . . . . . . . . . . . . . . . . . . . . . . . . Parts Scanalyzed . | . . . . . . . . . . . . . . . . . . . . . . . . . . . . Part Schematics Acquired . | . . . . . . . . . . . . . . . . . . . . . . . . . . . . Parts Damaged . | . . . . . . . . . . . . . . . . . . . . . . . . . . . . Bothacking | -11 -10 -10 -9 -9 -9 -8 -8 -7 -7 -6 -6 -6 -6 -6 -5 -5 -5 -5 -4 -4 -4 -4 -4 -3 -3 -2 -1 ------------ Run | Jun Mat Min Mat Min Exi Min Mat Fac Sto Fac Ext Cet Arc Hub Fac Upp Upp Zhi Pro Fac Upp Upp War Pro Res Res Acc Used RIF Installer . | . . . . . . . . . . . . . . . . . . . . . . . . . . . . Robots Hacked 9 | . . . . . 1 . . . . . . . . . . . . . 1 1 . . 1 . . 5 . Non-combat 1 | . . . . . 1 . . . . . . . . . . . . . . . . . . . . . . Combat 8 | . . . . . . . . . . . . . . . . . . . 1 1 . . 1 . . 5 . Robot Hacks Applied 1 | . . . . . 1 . . . . . . . . . . . . . . . . . . . . . . parse_system 1 | . . . . . 1 . . . . . . . . . . . . . . . . . . . . . . Relay Couplers Released . | . . . . . . . . . . . . . . . . . . . . . . . . . . . . Fabnet Peak Effective % 8 | . . . . . . . . . . . . . . . . . . . 6 6 6 6 6 8 8 2 . Autooverrided 8 | . . . . . . . . . . . . . . . . . . . 1 1 . . 1 . . 5 . Robots Rewired 16 | . . . . . . . . 1 . . 13 . . . . . 2 . . . . . . . . . . Allies Hacked . | . . . . . . . . . . . . . . . . . . . . . . . . . . . . Hacks Repelled . | . . . . . . . . . . . . . . . . . . . . . . . . . . . . Allies | -11 -10 -10 -9 -9 -9 -8 -8 -7 -7 -6 -6 -6 -6 -6 -5 -5 -5 -5 -4 -4 -4 -4 -4 -3 -3 -2 -1 -------- Run | Jun Mat Min Mat Min Exi Min Mat Fac Sto Fac Ext Cet Arc Hub Fac Upp Upp Zhi Pro Fac Upp Upp War Pro Res Res Acc Total Allies 47 | . . . 2 6 . . . 1 . . 27 . . . . . 2 . 1 2 . . 1 . . 5 . Largest Group 15 | . . . 2 7 5 3 . 1 . . 15 15 5 1 . . 2 . 1 1 1 . 1 . . 1 . Highest-Rated Group 613 | . . . 20 133 102 40 . 34 . . 613 613 273 34 . . 79 . 56 48 24 . 47 . . 82 . Highest-Rated Ally 159 | . . . 10 31 31 16 . 34 . . 159 159 159 34 . . 49 . 56 48 24 . 47 . . 82 . Total Orders 7 | . . . . . . . . 1 . . . 6 . . . . . . . . . . . . . . . STAY 1 | . . . . . . . . 1 . . . . . . . . . . . . . . . . . . . FOLLOW 3 | . . . . . . . . . . . . 3 . . . . . . . . . . . . . . . GUARD 3 | . . . . . . . . . . . . 3 . . . . . . . . . . . . . . . Ally Attacks 331 | . . . . 7 . 24 . . . . 130 128 17 . . . 12 . 2 1 . . 1 . . 9 . Total Damage 6930 | . . . . 81 . 271 . . . . 2692 2711 340 . . . 458 . 68 48 . . 41 . . 220 . Kills 52 | . . . . 2 . 8 . . . . 15 23 1 . . . 2 . 1 . . . . . . . . Allies Corrupted . | . . . . . . . . . . . . . . . . . . . . . . . . . . . . Allies Melted 2 | . . . . . . . . . . . 1 . . . . . . . . . . . . . . 1 . Intel | -11 -10 -10 -9 -9 -9 -8 -8 -7 -7 -6 -6 -6 -6 -6 -5 -5 -5 -5 -4 -4 -4 -4 -4 -3 -3 -2 -1 ------- Run | Jun Mat Min Mat Min Exi Min Mat Fac Sto Fac Ext Cet Arc Hub Fac Upp Upp Zhi Pro Fac Upp Upp War Pro Res Res Acc Robot Analysis Total 16 | . 4 . 3 . . . . . 1 . 2 . . 1 1 . . 4 . . . . . . . . . Derelict Logs Recovered 11 | . . 1 . 2 . . . . . . . . . . . 2 1 . 2 . . 3 . . . . . Drone Launches . | . . . . . . . . . . . . . . . . . . . . . . . . . . . . Drone Recoveries . | . . . . . . . . . . . . . . . . . . . . . . . . . . . . Exploration | -11 -10 -10 -9 -9 -9 -8 -8 -7 -7 -6 -6 -6 -6 -6 -5 -5 -5 -5 -4 -4 -4 -4 -4 -3 -3 -2 -1 ------------- Run | Jun Mat Min Mat Min Exi Min Mat Fac Sto Fac Ext Cet Arc Hub Fac Upp Upp Zhi Pro Fac Upp Upp War Pro Res Res Acc Turns Passed 27303 | 96 1698 139 1674 366 466 502 3740 910 872 937 1596 566 309 1453 1583 618 739 350 1311 1851 599 784 1159 244 228 1106 1407 Spaces Moved 15845 | 53 824 87 1094 341 393 342 1551 558 383 550 837 361 172 632 870 405 327 159 458 723 480 569 890 138 192 1460 996 Core 7 | 2 . . . . . . 1 . . . . . . . . . . . . 4 . . . . . . . Treads 1069 | 51 824 15 35 . . . . . . . . . . . . . 1 . 81 62 . . . . . . . Legs 800 | . . . . . . . . . . . . . . . . . . . . 657 143 . . . . . . Wheels 9503 | . . 72 1059 341 393 342 1550 558 383 550 837 361 172 632 870 405 326 159 377 . . . . 116 . . . Hover 4466 | . . . . . . . . . . . . . . . . . . . . . 337 569 890 22 192 1460 996 Flight . | . . . . . . . . . . . . . . . . . . . . . . . . . . . . Fastest Speed 41 | 50 160 130 105 105 105 120 120 120 120 135 135 145 145 145 145 145 145 210 195 120 59 124 124 124 45 41 42 Average Speed 130 | 155 160 135 109 105 117 120 120 120 126 145 146 145 158 146 145 145 177 210 257 195 116 124 124 141 90 64 84 Slowest Speed 2000 | 160 160 160 240 105 120 120 1200 120 135 195 195 160 160 160 145 145 480 210 480 2000 190 124 287 145 117 115 132 Overloaded Moves . | . . . . . . . . . . . . . . . . . . . . . . . . . . . . Propulsion Burnouts . | . . . . . . . . . . . . . . . . . . . . . . . . . . . . Robots Hopped . | . . . . . . . . . . . . . . . . . . . . . . . . . . . . Cave-ins Triggered . | . . . . . . . . . . . . . . . . . . . . . . . . . . . . Teleports 1 | . . . . . . . . . . . . . . . . . . . . . . . . 1 . . . Exploration Rate (%) 55 | 4 90 34 72 81 76 60 82 13 57 16 93 88 93 47 25 57 51 62 72 17 68 70 93 36 11 54 27 Regions Visited 27 Branch Regions 17 Pre-discovered Areas 8 | . . . . 1 1 . . . . . . . . . . . 1 3 . . . 1 1 . . . . Known Exits Taken 21 | . . . 1 . . . 1 1 1 1 1 1 1 1 1 1 1 1 1 1 1 1 1 1 1 1 . Unknown Exits Taken 6 | 1 1 1 . 1 1 1 . . . . . . . . . . . . . . . . . . . . . Scrap Searched 14 | . . . . 1 . 1 . . . . . . . . . 2 3 . 2 . 1 3 . 1 . . . Spaces Dug 187 | . . . . . . . 7 3 2 . . . . . 26 . . . . 8 . . . . 1 6 134 Terrain Destroyed 870 | . . . . . . . 45 3 48 2 12 2 13 218 119 9 72 . 40 43 63 21 13 2 1 6 138 Melee 34 | . . . . . . . 6 3 2 . . . . . . . . . . 8 . . . . 1 6 8 Projectile 414 | . . . . . . . 8 . 10 2 12 2 13 45 119 9 72 . 40 35 . . 4 2 . . 41 AOE 420 | . . . . . . . 29 . 36 . . . . 173 . . . . . . 63 21 9 . . . 89 Terrain Rammed . | . . . . . . . . . . . . . . . . . . . . . . . . . . . . Walls Destroyed . | . . . . . . . . . . . . . . . . . . . . . . . . . . . . Machines Disabled . | . . . . . . . . . . . . . . . . . . . . . . . . . . . . Actions | -11 -10 -10 -9 -9 -9 -8 -8 -7 -7 -6 -6 -6 -6 -6 -5 -5 -5 -5 -4 -4 -4 -4 -4 -3 -3 -2 -1 --------- Run | Jun Mat Min Mat Min Exi Min Mat Fac Sto Fac Ext Cet Arc Hub Fac Upp Upp Zhi Pro Fac Upp Upp War Pro Res Res Acc Total 21243 | 64 1111 95 1491 346 398 403 3203 778 693 680 1119 391 184 1074 1105 425 425 177 511 1012 502 620 927 168 250 1609 1482 Wait 3998 | . 206 . 295 2 . 37 1489 184 190 80 133 1 . 387 172 16 55 . 11 173 2 23 21 5 30 108 378 Move 15817 | 52 823 86 1093 340 392 341 1550 557 382 549 836 360 171 631 869 404 326 158 457 722 479 568 889 137 191 1459 995 Hop . | . . . . . . . . . . . . . . . . . . . . . . . . . . . . Pick Up 152 | 6 12 . 16 1 1 4 13 4 10 15 3 4 . 3 8 . 2 6 2 13 2 5 2 4 3 8 5 Fast Attach 62 | 6 2 . 5 . . . 5 . 11 4 . 3 . 3 2 . 1 2 1 8 . 2 2 . 2 2 1 Attach 90 | . 1 . 4 . . . 6 2 10 4 2 . . 1 3 . 4 3 3 5 1 4 3 7 7 6 14 Detach 42 | . . . . . . . 2 . 4 . 1 1 . 1 1 . . 2 . 1 1 1 . 4 8 2 13 Swap 103 | . 2 1 4 . 3 1 17 2 8 4 3 6 4 3 3 1 3 2 3 17 3 . . . 2 5 6 Drop 154 | . 5 . 16 1 1 1 16 3 18 16 3 9 . 7 6 . 2 4 1 13 4 3 3 2 6 7 7 Fire 644 | . 55 8 48 2 . 18 94 12 57 8 39 7 9 38 41 4 25 . 33 52 10 14 7 9 . 1 53 Melee 48 | . . . . . 1 . 6 8 3 . . . . . . . . . . 8 . . . . 1 11 10 Ram 17 | . . . 10 . . 1 5 1 . . . . . . . . . . . . . . . . . . . Kick . | . . . . . . . . . . . . . . . . . . . . . . . . . . . . Crush 5 | . 5 . . . . . . . . . . . . . . . . . . . . . . . . . . Escape Stasis 16 | . . . . . . . . . . . 16 . . . . . . . . . . . . . . . . Rewire 95 | . . . . . . . . 5 . . 83 . . . . . 7 . . . . . . . . . . Trap . | . . . . . . . . . . . . . . . . . . . . . . . . . . . . Miscellaneous . | . . . . . . . . . . . . . . . . . . . . . . . . . . . . Route ------- -11/Junkyard -10/Materials (discovered 4 exits: *Mat x3 / [*Min]) -10/Mines -9/Materials (discovered 4 exits: *Mat x2 / *Min x2) -9/Mines (discovered 2 exits: *Mat / *Exi) -9/Exiles -8/Mines -8/Materials (discovered 2 exits: *Fac x2) -7/Factory -7/Storage -6/Factory (discovered 5 exits: *Fac / *Low x2 / *Ext x2) -6/Extension (discovered 3 exits: *Fac x2 / *Cet) -6/Cetus (discovered 3 exits: *Fac x2 / *Arc) -6/Archives (discovered 3 exits: *Fac / *Hub x2) -6/Hub_04(d) (discovered 2 exits: *Fac x2) -5/Factory (discovered 2 exits: *Upp x2) -5/Upper Caves -5/Upper Caves -5/Zhirov -4/Proximity Caves -4/Factory (discovered 4 exits: Res / *Upp x2 / Arm) -4/Upper Caves -4/Upper Caves (discovered 2 exits: *Res / *War) -4/Warlord -3/Proximity Caves -3/Research (discovered 4 exits: *Res x3 / Tes) -2/Research (discovered 2 exits: *Acc / *Qua) -1/Access (discovered 2 exits: *Sur / *Com) To Epsilon Eridani History --------- Turn | Location | Event 43 | -11/Junkyard | Discovered new exit (range 15) 97 | -11/Junkyard | Entered Materials 302 | -10/Materials | Build established: Mutant 697 | -10/Materials | Discovered new exit (range 16) 788 | -10/Materials | Discovered new exit (range 15) 944 | -10/Materials | Central database locked down 998 | -10/Materials | Discovered new exit (range 14) 1043 | -10/Materials | Discovered new exit (range 8) 1795 | -10/Materials | Entered Mines 1833 | -10/Mines | Assembled infested the area 1894 | -10/Mines | Learned Materials terminal intel 1907 | -10/Mines | Discovered new exit (range 6) 1934 | -10/Mines | Entered Materials 1934 | -9/Materials | Evolved 2 slots: Weapon x2 1935 | -9/Materials | Loaded intel: 12 terminal locations 2136 | -9/Materials | Identified exit to Mines 2233 | -9/Materials | Build established: Tank 2801 | -9/Materials | Discovered new exit (range 14) 2993 | -9/Materials | Repaired Autogun 3027 | -9/Materials | Repaired Autogun 3059 | -9/Materials | Repaired Autogun 3134 | -9/Materials | Central database locked down 3170 | -9/Materials | Discovered new exit (range 16) 3608 | -9/Materials | Entered Mines 3608 | -9/Mines | Accompanied by 1 ally 3621 | -9/Mines | Assisted by bots powering up and referring to "LRC-V3" 3640 | -9/Mines | Learned location of Recycling (-7) 3795 | -9/Mines | Learned Materials garrison access intel 3921 | -9/Mines | Build established: Commander-Mutant 3954 | -9/Mines | Discovered new exit (range 7) 3955 | -9/Mines | Escorted by a lone wolf Derelict 3968 | -9/Mines | Deemed a non-threat by the Exiles lab entrance 3968 | -9/Mines | Discovered new exit (range 5) 3974 | -9/Mines | Entered Exiles 3974 | -9/Exiles | Accompanied by 5 allies 3999 | -9/Exiles | Met 8R-AWN 4004 | -9/Exiles | Led the pair of lost Derelicts to a safe place 4019 | -9/Exiles | Met EX-HEX 4081 | -9/Exiles | Met EX-DEC 4099 | -9/Exiles | Visited The Gauntlet 4155 | -9/Exiles | Learned location of Zion (-6) 4233 | -9/Exiles | Met EX-BIN 4257 | -9/Exiles | Aligned with FarCom system 4258 | -9/Exiles | Given EX-Vault access code 4267 | -9/Exiles | Build established: Tank 4288 | -9/Exiles | Opened EX-Vault 4299 | -9/Exiles | Found Firepult 4325 | -9/Exiles | Warned to stay clear of 0b10 Research branches 4338 | -9/Exiles | Exiles lab attacked by MAIN.C 4404 | -9/Exiles | Discovered new exit (range 14) 4440 | -9/Exiles | Left Exiles lab with Firepult 4440 | -9/Exiles | Entered Mines 4440 | -8/Mines | Accompanied by 3 allies 4706 | -8/Mines | Build established: Skirmisher 4910 | -8/Mines | Discovered new exit (range 15) 4942 | -8/Mines | Entered Materials 4942 | -8/Materials | Evolved 2 slots: Utility x2 4943 | -8/Materials | Loaded intel: 1 garrison access location 6719 | -8/Materials | Discovered new exit (range 10) 6782 | -8/Materials | Identified exit to Factory 8142 | -8/Materials | First assault squad dispatched 8636 | -8/Materials | Discovered exit to Factory (range 14) 8682 | -8/Materials | Entered Factory 8682 | -7/Factory | Evolved 2 slots: Utility x2 8989 | -7/Factory | Build established: Tank 9339 | -7/Factory | Discovered new exit (range 8) 9351 | -7/Factory | Identified exit to Storage 9592 | -7/Factory | Entered Storage 10389 | -7/Storage | Discovered new exit (range 16) 10463 | -7/Storage | Identified exit to Factory 10464 | -7/Storage | Entered Factory 10464 | -6/Factory | Evolved 2 slots: Utility x2 10751 | -6/Factory | Build established: Scavenger-Mutant 11053 | -6/Factory | Identified exit to Lower Caves 11053 | -6/Factory | Identified exit to Extension 11280 | -6/Factory | Discovered new exit (range 12) 11334 | -6/Factory | Build established: Hacker-Skirmisher 11401 | -6/Factory | Entered Extension 11696 | -6/Extension | Rescued a captive Derelict 11852 | -6/Extension | Rescued a captive Derelict 11979 | -6/Extension | Rescued a captive Derelict 11979 | -6/Extension | Rescued a captive Derelict 12057 | -6/Extension | Rescued a captive Derelict 12058 | -6/Extension | Rescued a captive Derelict 12153 | -6/Extension | Spotted B-75 Beast 12154 | -6/Extension | Rescued a captive Derelict 12161 | -6/Extension | Rescued a captive Derelict 12179 | -6/Extension | Spotted B-75 Beast 12186 | -6/Extension | Destroyed B-75 Beast 12196 | -6/Extension | Destroyed B-75 Beast 12265 | -6/Extension | Discovered new exit (range 3) 12270 | -6/Extension | Identified exit to Factory 12368 | -6/Extension | Rescued a captive Derelict 12369 | -6/Extension | Rescued a captive Derelict 12374 | -6/Extension | Rescued A7 12671 | -6/Extension | Rescued a captive Derelict 12693 | -6/Extension | Rescued a captive Derelict 12694 | -6/Extension | Rescued a captive Derelict 12812 | -6/Extension | Discovered exit to Factory (range 10) 12813 | -6/Extension | Discovered new exit (range 6) 12848 | -6/Extension | Build established: Commander-Skirmisher 12989 | -6/Extension | Identified exit to Cetus 12997 | -6/Extension | Entered Cetus 12997 | -6/Cetus | Accompanied by 15 allies (A7) 13002 | -6/Cetus | Acquired a Cetus Manufacturing Module code from A7 13017 | -6/Cetus | Spotted Cetus Guard 13017 | -6/Cetus | Spotted Cetus Guard 13020 | -6/Cetus | Spotted Cetus Guard 13020 | -6/Cetus | Spotted Cetus Guard 13023 | -6/Cetus | Allies destroyed Cetus Guard 13024 | -6/Cetus | Allies destroyed Cetus Guard 13029 | -6/Cetus | Destroyed Cetus Guard 13034 | -6/Cetus | Allies destroyed Cetus Guard 13050 | -6/Cetus | Cetus Manufacturing Module disabled 13126 | -6/Cetus | Discovered exit to Factory (range 16) 13251 | -6/Cetus | Failed to start Cetus Manufacturing Module 13265 | -6/Cetus | Escorted A7 to Cetus Mainframe 13385 | -6/Cetus | Discovered new exit (range 16) 13421 | -6/Cetus | Identified exit to Archives 13450 | -6/Cetus | Spotted Cetus Guard 13451 | -6/Cetus | Spotted Cetus Guard 13453 | -6/Cetus | Destroyed Cetus Guard 13463 | -6/Cetus | Spotted Cetus Guard 13471 | -6/Cetus | Discovered exit to Factory (range 16) 13475 | -6/Cetus | Allies destroyed Cetus Guard 13479 | -6/Cetus | Destroyed Cetus Guard 13486 | -6/Cetus | Met Revision 17 13563 | -6/Cetus | Entered Archives 13563 | -6/Archives | Accompanied by 5 allies (A7) 13568 | -6/Archives | Received a hacking code to weaken MAIN.C 13595 | -6/Archives | Build established: Scavenger-Tank 13623 | -6/Archives | Unable to access archive contents 13639 | -6/Archives | Unable to access archive contents 13646 | -6/Archives | Discovered new exit (range 16) 13681 | -6/Archives | Identified exit to Hub_04(d) 13714 | -6/Archives | Discovered exit to Hub_04(d) (range 15) 13759 | -6/Archives | Unable to access archive contents 13775 | -6/Archives | Unable to access archive contents 13791 | -6/Archives | Discovered exit to Factory (range 15) 13872 | -6/Archives | Entered Hub_04(d) 13872 | -6/Hub_04(d) | Accompanied by 1 ally 14065 | -6/Hub_04(d) | Discovered exit to Factory (range 6) 14882 | -6/Hub_04(d) | Build established: Scavenger-Mutant 15019 | -6/Hub_04(d) | Discovered exit to Factory (range 15) 15269 | -6/Hub_04(d) | Network Hub disabled 15275 | -6/Hub_04(d) | Build established: Scavenger-Tank 15319 | -6/Hub_04(d) | Spotted Lightning 15321 | -6/Hub_04(d) | Spotted Lightning 15323 | -6/Hub_04(d) | Spotted Lightning 15325 | -6/Hub_04(d) | Entered Factory 15325 | -5/Factory | Evolved 2 slots: Utility x2 15613 | -5/Factory | Build established: Scavenger-Gunner 15975 | -5/Factory | Found Prototype Device 15975 | -5/Factory | Identified Exp. ECM Suite 16763 | -5/Factory | Identified exit to Upper Caves 16799 | -5/Factory | Cargo convoy interrupted 16908 | -5/Factory | Entered Upper Caves 17455 | -5/Upper Caves | Learned 4 Factory zone layouts 17492 | -5/Upper Caves | Discovered new exit (range 12) 17508 | -5/Upper Caves | Attracted the attention of an 0b10 checkpoint 17525 | -5/Upper Caves | Identified exit to Upper Caves 17526 | -5/Upper Caves | Entered another Upper Caves area 17773 | -5/Upper Caves | Attracted the attention of an 0b10 outpost 17819 | -5/Upper Caves | Destroyed 7 combat bots 18257 | -5/Upper Caves | Discovered new exit (range 5) 18263 | -5/Upper Caves | Identified exit to Zhirov 18265 | -5/Upper Caves | Entered Zhirov 18265 | -5/Zhirov | Discovered new exit (range 3) 18270 | -5/Zhirov | Identified exit to Proximity Caves 18303 | -5/Zhirov | Met Zhirov 18341 | -5/Zhirov | Learned location of Quarantine (-2) 18341 | -5/Zhirov | Learned location of Testing (-3) 18341 | -5/Zhirov | Learned location of Command (-1) 18385 | -5/Zhirov | Zhirov requested help retrieving the SGEMP Prototype 18426 | -5/Zhirov | Found Alien Artifact 18426 | -5/Zhirov | Identified Integrated Reactor 18426 | -5/Zhirov | Installed Integrated Reactor, increased core energy generation (+10) 18457 | -5/Zhirov | Found Alien Artifact 18615 | -5/Zhirov | Entered Proximity Caves 18618 | -4/Proximity Caves | Spotter reported a threat 18619 | -4/Proximity Caves | Spotter reported a threat 19078 | -4/Proximity Caves | Identified exit to Factory 19880 | -4/Proximity Caves | Attracted the attention of an 0b10 checkpoint 19926 | -4/Proximity Caves | Entered Factory 19926 | -4/Factory | Evolved 2 slots: Propulsion x2 19927 | -4/Factory | Identified exit to Research 20096 | -4/Factory | Found Hvy. Reactive Plating 20106 | -4/Factory | Found Hvy. Reactive Plating 20808 | -4/Factory | Garrison activated, responded to threat 21497 | -4/Factory | Garrison activated, responded to threat 21612 | -4/Factory | Identified exit to Upper Caves 21612 | -4/Factory | Identified exit to Armory 21777 | -4/Factory | Entered Upper Caves 21777 | -4/Upper Caves | Accompanied by 1 ally 21778 | -4/Upper Caves | Encountered a Warlord checkpoint 21802 | -4/Upper Caves | Attracted the attention of an 0b10 checkpoint 22151 | -4/Upper Caves | Discovered new exit (range 11) 22162 | -4/Upper Caves | Identified exit to Upper Caves 22256 | -4/Upper Caves | Build established: Hacker-Gunner 22336 | -4/Upper Caves | Attracted the attention of an 0b10 outpost 22376 | -4/Upper Caves | Entered another Upper Caves area 22377 | -4/Upper Caves | Identified exit to Warlord 22567 | -4/Upper Caves | Discovered exit to Research (range 15) 22586 | -4/Upper Caves | Learned location of 1 exit from Research 22691 | -4/Upper Caves | Learned location of 1 exit from Research 23116 | -4/Upper Caves | Attacked by a delusional Derelict stockpiling parts 23160 | -4/Upper Caves | Entered Warlord 23232 | -4/Warlord | Discovered new exit (range 14) 23247 | -4/Warlord | Identified exit to Proximity Caves 23407 | -4/Warlord | Build established: Hacker-Mutant 23695 | -4/Warlord | Learned location of Armory (-4) 23695 | -4/Warlord | Learned Quarantine emergency access door positions 23696 | -4/Warlord | Learned 4 Access zone layouts 23696 | -4/Warlord | Learned 4 Research zone layouts 23725 | -4/Warlord | Visited the Vortex Lab 23741 | -4/Warlord | Warlord's base attacked by MAIN.C 23979 | -4/Warlord | Met Warlord 24091 | -4/Warlord | Warlord forces counterattacked 24218 | -4/Warlord | Opened side exit 24299 | -4/Warlord | Destroyed 11 combat bots 24319 | -4/Warlord | Entered Proximity Caves 24333 | -3/Proximity Caves | Attracted the attention of an 0b10 checkpoint 24380 | -3/Proximity Caves | Spotter reported a threat 24393 | -3/Proximity Caves | Spotter reported a threat 24446 | -3/Proximity Caves | Spotter reported a threat 24456 | -3/Proximity Caves | Spotter reported a threat 24469 | -3/Proximity Caves | Spotted B-86 Titan 24532 | -3/Proximity Caves | Identified Transdimensional Reconstructor 24532 | -3/Proximity Caves | Warped through subspace 24540 | -3/Proximity Caves | Discovered exit to Research (range 12) 24550 | -3/Proximity Caves | Spotter reported a threat 24563 | -3/Proximity Caves | Entered Research 24563 | -3/Research | Evolved 2 slots: Power x1, Propulsion x1 24564 | -3/Research | Identified exit to Testing 24565 | -3/Research | Identified exit to Research 24791 | -3/Research | Entered another Research area 24791 | -2/Research | Warlord forces began assault on 0b10 24791 | -2/Research | Evolved 2 slots: Propulsion x1, Utility x1 24863 | -2/Research | Local machine network offline 25025 | -2/Research | Met up with Warlord 25028 | -2/Research | Warlord destroyed during the assault 25128 | -2/Research | Build established: Hacker-Ninja 25138 | -2/Research | Spotted B-90 Cyclops 25213 | -2/Research | Borebot progress halted 25240 | -2/Research | Discovered new exit (range 11) 25246 | -2/Research | Identified exit to Quarantine 25269 | -2/Research | Spotted Striker 25282 | -2/Research | Spotted Executioner 25282 | -2/Research | Spotted Executioner 25381 | -2/Research | Borebot progress halted 25494 | -2/Research | Found Prototype Hackware 25624 | -2/Research | Build established: Hacker-Assassin 25717 | -2/Research | Spotted Executioner 25887 | -2/Research | Discovered new exit (range 8) 25896 | -2/Research | Identified exit to Access 25897 | -2/Research | Entered Access 25897 | -1/Access | Evolved 2 slots: Utility x2 25897 | -1/Access | Identified Exp. System Shield 25975 | -1/Access | Identified exit to Surface 26121 | -1/Access | Spotted B-99 Colossus 26626 | -1/Access | Discovered new exit (range 8) 26633 | -1/Access | Identified exit to Command 27304 | *** | Escaped! Last Messages --------------- 27257_ The unstable cave ceiling collapses. 27260_ U-05 Engineer forms the Earth. 27267_ U-05 Engineer builds a Wall. 27280_ Mic. Antimatter Reactor destroyed. 27280_ Penetrated by Slug. 27280_ Hardlight Generator destroyed. 27280_ Slug penetrates Wall. 27284_ U-05 Engineer builds a Wall. 27286_ Penetrated by Slug. 27286_ Slug penetrates Wall. 27291_ W-44 Eye sends out distress signal. 27297_ Connecting with Terminal... >>Open(Door) Sealed Barrier opened. 27298_ System corrupted: Heat flow error (+231). 27298_ Main Access Shell breached. 27302_ The Access Shell folds into the floor. [Achievement: 20k Club] [Achievement: 30k Club] [Achievement: Epsilon Run] Map ----- +----------------------------------------------------+ | # "" #??????????????????????????????? | | #""" #??????????????????????????????? | | #"R #??????????????????????????????? | | #""" == #??????????????????????????????? | | #""" == #??????????????????????????????? | | # == #??????????????????????????????? | | # #??????????????????????????????? | | # #??????????????????????????????? | | # #??????????????????????????????? | | ###### #??????????????????????????????? | | ###############+######################## ???????? | | R k w H ??????? | | ???????? | | ########"############ ""#?????????????????? | | ????????????????????# ""#?????????????????? | | ????????????????????# ""#?????????????????? | | ????????????????????# T#?????????????????? | | ????????????????????# ""#?????????????????? | | ????????????????????# ""#?????????????????? | | ???????????????????## ""##????????????????? | | ???????????????????# #????????????????? | | ???????????????????## ##????????????????? | | ????????????????????# #?????????????????? | | ????????????????????# #?????????????????? | | ????????????????????# #?????????????????? | | ????????????????????# @" #?????????????????? | | ????????????????????# "" #?????????????????? | | ????????????????????# #?????????????????? | | ????????????????????# #?????????lg??????? | | ????????????????????# #?????????????????? | | ????????????????????#""""""""""#?????????????????? | | ?????????????????????????????????????????g???????? | | ?????????????????????????????????????????????????? | | ?????????????????????????????????????????????????? | | ?????????????????????????????????????????????????? | | ??????????????????????BB????BB???????????????????? | | ??????????????????????BB????BB???????????????????? | | ?????????????????????????????????????????????????? | | ???????????????p?????????????????????????????????? | | ?????????????????????????????????????????????????? | | ?????????????????????????????????????????????????? | | ?????????????????????????????????????????????????? | | ?????????????????????????????????????????????????? | | ?????????????????????????????????????????????????? | | ?????????????????????????????????????????????????? | | ?????????????????????????????????????????????????? | | ?????????????????????????????????????????????????? | | ?????????????????????????????????????????????????? | | ?????????????????????????????????????????????????? | | ?????????????????????????????????????????????????? | +----------------------------------------------------+ Best States ------------- Heat Dissipation 93 Energy Generation 49 Energy Capacity 390 Matter Stores 300 Matter Capacity 300 Sight Range 22 Terrain Scan Density 10 Jamming Range 16 Additional Mass Support 6 EM Shielding 2 Armor Coverage 675 Resistance: KI 40 Weapon Shielding 90 Weapon Cycling 15 Evasion (%) 56 Targeting Accuracy 6 Target Analysis 6 Core Analysis 6 Recoil Reduction 7 Kinecelleration 30 Offensive Hacking 14 Defensive Hacking 30 Item Schematics ----------------- Assault Drone Bay | -5/Zhirov | Free Exp. Heat Sink | -5/Zhirov | Free Exp. Optical Array | -5/Zhirov | Free Imp. Arc Thrower | -5/Zhirov | Free Robot Schematics ------------------ None Fabricated ------------ Nothing Alien Tech Used ----------------- Integrated Reactor Transdimensional Reconstructor Achievements -------------- 20k Club 30k Club A New Friend All-out Warlord Backstab Dramatic Entrance Epsilon Run Explorer Gunslinger It Was An Accident, I Swear Main Advantage Ooh, Shiny! Prison Break Project G-00 Quick And Dirty Revising The Future Rockin' Loadout Subspace Traveler The Science Guy Treasure Hunter root@ Challenges ------------ None Game ------ Seed PowerFrostFirepult Manual? 0 Play Time 06:51:19 Cumulative 44.7 hours Start 2023.04.11 @ 08:24:33 End 2023.04.12 @ 05:15:32 Sessions 5 Manual Loads 0 Difficulty Rogue Special Mode None Game No. 29 Rogue 29 Adventurer 0 Explorer 0 Win Type 0 Total 1 Types 1/0/0/0/0/0/0/0/0 Lore% 45 Gallery% 38 Achievement% 37 Wizard Run 0 Options --------- ASCII 0 Keyboard 0 Movement Numpad Keybinds 0 Fullscreen 1 Font 14/SmallcapsGlow Map View 84x54 Tactical HUD 1 Map Filters NONE Filters NONE Steam 1 RUN: 2c72e5ae-0570-40ef-a389-32297165c380